fUSD/lending_fUSD_20240502
["ID","MTS","AMOUNT","RATE_DAILY","PERIOD"]
[325281219,1714679461082,-8737.63,0.0003041,2]
[325281220,1714679461091,-500.0,0.0003041,2]
[325281221,1714679461101,-1478.37,0.0003041,2]
[325281222,1714679461111,-500.0,0.0003041,2]
[325281223,1714679461125,-500.0,0.0003041,2]
[325281224,1714679461136,-1489.76,0.0003041,2]
[325281225,1714679461147,-3872.12,0.0003041,2]
[325281226,1714679461156,-1762.03,0.0003041,2]
[325281227,1714679461165,-559.6,0.0003041,2]
[325281228,1714679461175,-500.0,0.0003041,2]
[325281229,1714679461184,-500.0,0.0003041,2]
[325281230,1714679461194,-857.86,0.0003041,2]
[325281231,1714679461204,-568.77,0.0003041,2]
[325281232,1714679461213,-500.0,0.0003041,2]
[325281233,1714679461223,-500.0,0.0003041,2]
[325281234,1714679461232,-500.0,0.0003041,2]
[325281235,1714679461241,-500.0,0.0003041,2]
[325281236,1714679461251,-3537.02,0.0003041,2]
[325281237,1714679461260,-1112.55,0.0003041,2]
[325281238,1714679461270,-2959.3,0.0003041,2]
[325281239,1714679461280,-500.0,0.0003041,2]
[325281240,1714679461290,-500.0,0.0003041,2]
[325281241,1714679461299,-500.0,0.0003041,2]
[325281242,1714679461309,-35824.29,0.0003041,2]
[325281243,1714679461318,-500.0,0.0003041,2]
[325281244,1714679461328,-926.44,0.0003041,2]
[325281245,1714679461338,-500.0,0.0003041,2]
[325281246,1714679461349,-500.0,0.0003041,2]
[325281247,1714679461361,-500.0,0.0003041,2]
[325281248,1714679461371,-500.0,0.0003041,2]
[325281249,1714679461382,-673.09,0.0003041,2]
[325281250,1714679461392,-500.0,0.0003041,2]
[325281251,1714679461402,-1967.8,0.0003041,2]
[325281252,1714679461412,-1030.02,0.0003041,2]
[325281253,1714679461421,-770.52,0.0003041,2]
[325281254,1714679461432,-500.0,0.0003041,2]
[325281255,1714679461443,-500.0,0.0003041,2]
[325281256,1714679461453,-500.0,0.0003041,2]
[325281257,1714679461462,-500.0,0.0003041,2]
[325281258,1714679461472,-500.0,0.0003041,2]
[325281259,1714679461482,-3569.89,0.0003041,2]
[325281260,1714679461492,-5497.29,0.0003041,2]
[325281261,1714679461502,-1410.81,0.0003041,2]
[325281262,1714679461513,-848.82,0.0003041,2]
[325281263,1714679461522,-500.0,0.0003041,2]
[325281264,1714679461532,-500.0,0.0003041,2]
[325281265,1714679461543,-500.0,0.0003041,2]
[325281266,1714679461553,-500.0,0.0003041,2]
[325281267,1714679461771,-500.0,0.0003041,2]
[325281268,1714679461783,-500.0,0.0003041,2]
[325281269,1714679461792,-1126.39,0.0003041,2]
[325281270,1714679461802,-855.14,0.0003041,2]
[325281271,1714679461811,-500.0,0.0003041,2]
[325281272,1714679461821,-4801.9,0.0003041,2]
[325281273,1714679461830,-500.0,0.0003041,2]
[325281274,1714679461841,-500.0,0.0003041,2]
[325281275,1714679461851,-1944.2,0.0003041,2]
[325281276,1714679461861,-500.0,0.0003041,2]
[325281277,1714679461870,-1753.32,0.0003041,2]
[325281278,1714679461879,-12085.36,0.0003041,2]
[325281279,1714679461890,-3087.12,0.0003041,2]
[325281280,1714679461899,-500.0,0.0003041,2]
[325281281,1714679461908,-4646.99,0.0003041,2]
[325281282,1714679461919,-500.0,0.0003041,2]
[325281283,1714679461928,-500.0,0.0003041,2]
[325281284,1714679461937,-500.0,0.0003041,2]
[325281285,1714679461947,-1662.71,0.0003041,2]
[325281286,1714679461956,-500.0,0.0003041,2]
[325281287,1714679461965,-500.0,0.0003041,2]
[325281288,1714679461974,-518.3051075,0.0003041,2]
[325281289,1714679461984,-597.42086511,0.0003041,2]
[325281290,1714679461994,-3507.11,0.0003041,2]
[325281291,1714679462003,-500.0,0.0003041,2]
[325281292,1714679462012,-2449.61,0.0003041,2]
[325281293,1714679462022,-7133.48,0.0003041,2]
[325281294,1714679462032,-604.52,0.0003041,2]
[325281295,1714679462042,-500.0,0.0003041,2]
[325281296,1714679462052,-2636.62,0.0003041,2]
[325281297,1714679462062,-3243.02,0.0003041,2]
[325281298,1714679462071,-9802.85,0.0003041,2]
[325281299,1714679462081,-3016.24,0.0003041,2]
[325281300,1714679462091,-500.0,0.0003041,2]
[325281301,1714679462101,-1348.54,0.0003041,2]
[325281302,1714679462111,-500.0,0.0003041,2]
[325281303,1714679462120,-150.0,0.0003041,2]
[325281304,1714679462130,-987.23,0.0003041,2]
[325281305,1714679462141,-2140.47,0.0003041,2]
[325281306,1714679462151,-500.0,0.0003041,2]
[325281307,1714679462161,-500.0,0.0003041,2]
[325281308,1714679462171,-930.7,0.0003041,2]
[325281309,1714679462181,-511.52,0.0003041,2]
[325281310,1714679462191,-500.0,0.0003041,2]
[325281311,1714679462200,-500.0,0.0003041,2]
[325281312,1714679462209,-4536.72,0.0003041,2]
[325281313,1714679462220,-2208.09,0.0003041,2]
[325281314,1714679462230,-516.68,0.0003041,2]
[325281315,1714679462241,-500.0,0.0003041,2]
[325281316,1714679462250,-200.54885542,0.0003041,2]
[325281317,1714679462260,-500.0,0.0003041,2]
[325281318,1714679462270,-500.0,0.0003041,2]
[325281319,1714679462279,-3160.12,0.0003041,2]
[325281320,1714679462288,-1354.02,0.0003041,2]
[325281321,1714679462298,-887.1,0.0003041,2]
[325281322,1714679462308,-500.0,0.0003041,2]
[325281323,1714679462318,-553.93,0.0003041,2]
[325281324,1714679462327,-667.6,0.0003041,2]
[325281325,1714679462337,-500.0,0.0003041,2]
[325281326,1714679462348,-962.84,0.0003041,2]
[325281327,1714679462358,-500.0,0.0003041,2]
[325281328,1714679462368,-757.24,0.0003041,2]
[325281329,1714679462377,-2812.12,0.0003041,2]
[325281330,1714679462390,-500.0,0.0003041,2]
[325281331,1714679462399,-1322.04,0.0003041,2]
[325281332,1714679462408,-4871.54,0.0003041,2]
[325281333,1714679462417,-500.0,0.0003041,2]
[325281334,1714679462426,-6582.93,0.0003041,2]
[325281335,1714679462436,-500.0,0.0003041,2]
[325281336,1714679462445,-2039.06,0.0003041,2]
[325281337,1714679462454,-500.0,0.0003041,2]
[325281338,1714679462464,-500.0,0.0003041,2]
[325281339,1714679462473,-1283.1,0.0003041,2]
[325281340,1714679462483,-651.78,0.0003041,2]
[325281341,1714679462492,-3001.02,0.0003041,2]
[325281342,1714679462501,-2228.76,0.0003041,2]
[325281343,1714679462511,-757.9,0.0003041,2]
[325281344,1714679462520,-500.0,0.0003041,2]
[325281345,1714679462530,-500.0,0.0003041,2]
[325281346,1714679462539,-500.0,0.0003041,2]
[325281347,1714679462548,-15914.8,0.0003041,2]
[325281348,1714679462557,-500.0,0.0003041,2]
[325281349,1714679462566,-500.0,0.0003041,2]
[325281350,1714679462577,-3015.78,0.0003041,2]
[325281351,1714679462597,-694.17,0.0003041,2]
[325281352,1714679462607,-500.0,0.0003041,2]
[325281353,1714679462617,-1839.26,0.0003041,2]
[325281354,1714679462627,-500.0,0.0003041,2]
[325281355,1714679462640,-500.0,0.0003041,2]
[325281356,1714679462650,-1829.29,0.0003041,2]
[325281357,1714679462660,-1892.15,0.0003041,2]
[325281358,1714679462671,-500.0,0.0003041,2]
[325281359,1714679462681,-500.0,0.0003041,2]
[325281360,1714679462691,-668.12,0.0003041,2]
[325281361,1714679462701,-1389.73,0.0003041,2]
[325281362,1714679462711,-500.0,0.0003041,2]
[325281363,1714679462721,-500.0,0.0003041,2]
[325281364,1714679462732,-500.0,0.0003041,2]
[325281365,1714679462743,-1894.84,0.0003041,2]
[325281366,1714679462755,-500.0,0.0003041,2]
[325281367,1714679462767,-4322.93,0.0003041,2]
[325281368,1714679462781,-500.0,0.0003041,2]
[325281369,1714679462790,-1582.69,0.0003041,2]
[325281370,1714679462800,-912.06,0.0003041,2]
[325281371,1714679462811,-13266.97,0.0003041,2]
[325281372,1714679462822,-1568.59,0.0003041,2]
[325281373,1714679462832,-500.0,0.0003041,2]
[325281374,1714679462843,-500.0,0.0003041,2]
[325281375,1714679462854,-5760.25,0.0003041,2]
[325281376,1714679462864,-7664.25,0.0003041,2]
[325281377,1714679462874,-1731.61,0.0003041,2]
[325281378,1714679462886,-500.0,0.0003041,2]
[325281379,1714679462896,-500.0,0.0003041,2]
[325281380,1714679462905,-500.0,0.0003041,2]
[325281381,1714679462915,-2122.73,0.0003041,2]
[325281382,1714679462925,-19640.49,0.0003041,2]
[325281383,1714679462934,-500.0,0.0003041,2]
[325281384,1714679462944,-500.0,0.0003041,2]
[325281385,1714679462954,-6665.94,0.0003041,2]
[325281386,1714679462963,-500.0,0.0003041,2]
[325281387,1714679462973,-622.11,0.0003041,2]
[325281388,1714679462982,-600.78,0.0003041,2]
[325281389,1714679462992,-1562.95,0.0003041,2]
[325281390,1714679463002,-5252.62,0.0003041,2]
[325281391,1714679463012,-500.0,0.0003041,2]
[325281392,1714679463021,-1255.1,0.0003041,2]
[325281393,1714679463031,-3966.07,0.0003041,2]
[325281394,1714679463041,-435.96245604,0.0003041,2]
[325281395,1714679463050,-500.0,0.0003041,2]
[325281396,1714679463061,-2881.98,0.0003041,2]
[325281397,1714679463070,-500.0,0.0003041,2]
[325281398,1714679463081,-1531.4,0.0003041,2]
[325281399,1714679463091,-1116.28,0.0003041,2]
[325281400,1714679463102,-500.0,0.0003041,2]
[325281401,1714679463112,-500.0,0.0003041,2]
[325281402,1714679463121,-966.78,0.0003041,2]
[325281403,1714679463133,-2441.36,0.0003041,2]
[325281404,1714679463143,-1154.26,0.0003041,2]
[325281405,1714679463152,-503.32429532,0.0003041,2]
[325281406,1714679463162,-5459.33,0.0003041,2]
[325281407,1714679463172,-500.0,0.0003041,2]
[325281408,1714679463182,-500.0,0.0003041,2]
[325281409,1714679463192,-553.49,0.0003041,2]
[325281410,1714679463202,-1057.39,0.0003041,2]
[325281411,1714679463211,-910.57,0.0003041,2]
[325281412,1714679463221,-500.0,0.0003041,2]
[325281413,1714679463231,-1807.72,0.0003041,2]
[325281414,1714679463240,-986.67,0.0003041,2]
[325281415,1714679463250,-3127.45,0.0003041,2]
[325281416,1714679463261,-3063.78,0.0003041,2]
[325281417,1714679463271,-500.0,0.0003041,2]
[325281418,1714679463281,-964.49,0.0003041,2]
[325281419,1714679463291,-500.0,0.0003041,2]
[325281420,1714679463301,-500.0,0.0003041,2]
[325281421,1714679463311,-668.09,0.0003041,2]
[325281422,1714679463321,-555.92,0.0003041,2]
[325281423,1714679463331,-500.0,0.0003041,2]
[325281424,1714679463342,-500.0,0.0003041,2]
[325281425,1714679463353,-231.591003,0.00030411,14]
[325281426,1714679463363,-6183.29380276,0.00030468,2]
[325281427,1714679463373,-391.1904087,0.00030494,2]
[325281428,1714679463385,-3318.36023677,0.00030499,2]
[325281429,1714679463394,-613.33023596,0.00030499,2]
[325281430,1714679463404,-1136.94,0.00030499,4]
[325281431,1714679463413,-1136.94,0.00030499,4]
[325281432,1714679463423,-1136.94,0.00030499,4]
[325281433,1714679463434,-1136.94,0.00030499,4]
[325281434,1714679463443,-1136.94,0.00030499,4]
[325281435,1714679463453,-1136.94,0.00030499,4]
[325281436,1714679463464,-1137.04,0.00030499,4]
[325281437,1714679463474,-3886670.95606927,0.000305,5]
[325281439,1714679464355,-303.71835573,0.000305,5]
[325281440,1714679464379,-1000.0,0.0002818,2]
[325281441,1714679464390,-2008.005,0.000305,5]
[325281442,1714679464856,-500.0,0.00030136,2]
[325281443,1714679464866,-566.262,0.00030136,2]
[325281444,1714679464878,-81.25862328,0.00030136,2]
[325281445,1714679464889,-500.0,0.00030136,2]
[325281446,1714679464899,-413.0,0.0003041,2]
[325281447,1714679464908,-2013.24137672,0.000305,5]
[325281448,1714679464972,-681.33262632,0.000305,5]
[325281449,1714679465115,-1248.38005171,0.000305,5]
[325281450,1714679465127,-606.77984799,0.000305,5]
[325281451,1714679465139,-263.88133157,0.000305,5]
[325281452,1714679465151,-6088.44972094,0.000305,5]
[325281453,1714679465162,-3616.26,0.000305,5]
[325281456,1714679465663,-496.93,0.00030126,10]
[325281457,1714679465673,-16.57114907,0.00030135,4]
[325281458,1714679465684,-139.63213737,0.00030135,4]
[325281459,1714679465694,-500.0,0.00030136,2]
[325281460,1714679465703,-500.0,0.00030136,2]
[325281461,1714679465713,-500.0,0.00030136,2]
[325281462,1714679465722,-500.0,0.00030136,2]
[325281463,1714679465732,-500.0,0.0003041,2]
[325281464,1714679465741,-320.21786263,0.0003041,2]
[325281465,1714679465758,-179.78213737,0.0003041,2]
[325281466,1714679465768,-501.44607009,0.0003041,2]
[325281467,1714679465782,-2255.41923251,0.000305,5]
[325281468,1714679465794,-1930.936,0.000305,5]
[325281469,1714679465806,-3050.79717246,0.000305,5]
[325281470,1714679465820,-549.86025886,0.000305,5]
[325281471,1714679465842,-155.0,0.000209,2]
[325281472,1714679465852,-500.0,0.00030136,2]
[325281473,1714679465863,-12192.92298,0.000305,5]
[325281474,1714679465881,-750.613158,0.000305,5]
[325281475,1714679465897,-2429.49185345,0.000305,5]
[325281476,1714679466501,-1465.66433146,0.000305,5]
[325281478,1714679467338,-441.63916245,0.00030134,4]
[325281479,1714679467349,-494.144759,0.00030135,4]
[325281480,1714679467361,-396.86099238,0.00030135,4]
[325281481,1714679467371,-500.0,0.00030136,2]
[325281482,1714679467381,-500.0,0.00030136,2]
[325281483,1714679467395,-500.0,0.0003041,2]
[325281484,1714679467406,-3167.35508617,0.000305,5]
[325281485,1714679467423,-650.40968585,0.00030134,4]
[325281486,1714679467433,-59349.59031422,0.000305,5]
[325281487,1714679467698,-43874.32855455,0.000305,5]
[325281488,1714679467708,-2133.0037605,0.000305,5]
[325281489,1714679467717,-3679.17811584,0.000305,5]
[325281490,1714679467727,-874.0,0.000305,4]
[325281491,1714679467736,-151.0,0.000305,7]
[325281492,1714679467746,-1091.5956181,0.000305,2]
[325281493,1714679467755,-165.26005,0.000305,2]
[325281494,1714679467766,-157.694404,0.000305,2]
[325281495,1714679467780,-2131.9951888,0.000305,2]
[325281496,1714679467790,-255.241778,0.000305,7]
[325281497,1714679467799,-1000.0,0.00030503,10]
[325281498,1714679467809,-500.0,0.00030503,2]
[325281499,1714679467820,-200.0,0.00030503,2]
[325281500,1714679467829,-21139.6370139,0.00030515,2]
[325281501,1714679467839,-381.0,0.00030536,5]
[325281502,1714679467848,-151.03184687,0.00030616,7]
[325281503,1714679467859,-500.0,0.00030684,2]
[325281504,1714679467869,-500.0,0.00030684,2]
[325281505,1714679467879,-500.0,0.00030684,2]
[325281506,1714679467890,-500.0,0.00030684,2]
[325281507,1714679467899,-564.41,0.00030684,2]
[325281508,1714679467910,-500.0,0.00030684,2]
[325281509,1714679467919,-500.0,0.00030684,2]
[325281510,1714679467928,-764.73,0.00030684,2]
[325281511,1714679467937,-500.0,0.00030684,2]
[325281512,1714679467947,-500.0,0.00030684,2]
[325281513,1714679467956,-500.0,0.00030684,2]
[325281514,1714679467965,-500.0,0.00030684,2]
[325281515,1714679467976,-500.0,0.00030684,2]
[325281516,1714679467985,-500.0,0.00030684,2]
[325281517,1714679467994,-500.0,0.00030684,2]
[325281518,1714679468003,-500.0,0.00030684,2]
[325281519,1714679468012,-500.0,0.00030684,2]
[325281520,1714679468022,-500.0,0.00030684,2]
[325281521,1714679468031,-500.0,0.00030684,2]
[325281522,1714679468040,-500.0,0.00030684,2]
[325281523,1714679468049,-500.0,0.00030684,2]
[325281524,1714679468059,-500.0,0.00030684,2]
[325281525,1714679468068,-500.0,0.00030684,2]
[325281526,1714679468078,-500.0,0.00030684,2]
[325281527,1714679468087,-541.52951658,0.00030684,2]
[325281528,1714679468097,-617.87993474,0.00030684,2]
[325281529,1714679468106,-500.0,0.00030684,2]
[325281530,1714679468115,-500.0,0.00030684,2]
[325281531,1714679468123,-500.0,0.00030684,2]
[325281532,1714679468135,-500.0,0.00030684,2]
[325281533,1714679468143,-500.0,0.00030684,2]
[325281534,1714679468152,-500.0,0.00030684,2]
[325281535,1714679468161,-583.07,0.00030684,2]
[325281536,1714679468170,-500.0,0.00030684,2]
[325281537,1714679468180,-623.12383961,0.00030684,2]
[325281538,1714679468188,-731.3,0.00030684,2]
[325281539,1714679468198,-813.34,0.00030684,2]
[325281540,1714679468207,-500.0,0.00030684,2]
[325281541,1714679468217,-500.0,0.00030684,2]
[325281542,1714679468226,-500.13,0.00030684,2]
[325281543,1714679468235,-560.77,0.00030684,2]
[325281544,1714679468244,-500.0,0.00030684,2]
[325281545,1714679468254,-500.0,0.00030684,2]
[325281546,1714679468263,-500.0,0.00030684,2]
[325281547,1714679468272,-500.0,0.00030684,2]
[325281548,1714679468281,-500.0,0.00030684,2]
[325281549,1714679468290,-500.0,0.00030684,2]
[325281550,1714679468300,-500.0,0.00030684,2]
[325281551,1714679468309,-500.0,0.00030684,2]
[325281552,1714679468319,-500.0,0.00030684,2]
[325281553,1714679468328,-500.0,0.00030684,2]
[325281554,1714679468337,-500.0,0.00030684,2]
[325281555,1714679468349,-500.0,0.00030684,2]
[325281556,1714679468359,-500.0,0.00030684,2]
[325281557,1714679468368,-500.0,0.00030684,2]
[325281558,1714679468378,-500.0,0.00030684,2]
[325281559,1714679468390,-500.0,0.00030684,2]
[325281560,1714679468399,-500.0,0.00030684,2]
[325281561,1714679468407,-500.0,0.00030684,2]
[325281562,1714679468416,-500.0,0.00030684,2]
[325281563,1714679468425,-500.0,0.00030684,2]
[325281564,1714679468434,-500.0,0.00030684,2]
[325281565,1714679468443,-500.0,0.00030684,2]
[325281566,1714679468453,-500.0,0.00030684,2]
[325281567,1714679468462,-819.15,0.00030684,2]
[325281568,1714679468472,-500.0,0.00030684,2]
[325281569,1714679468481,-500.0,0.00030684,2]
[325281570,1714679468490,-500.0,0.00030684,2]
[325281571,1714679468499,-500.0,0.00030684,2]
[325281572,1714679468508,-500.0,0.00030684,2]
[325281573,1714679468517,-583.08,0.00030684,2]
[325281574,1714679468526,-500.0,0.00030684,2]
[325281575,1714679468535,-500.0,0.00030684,2]
[325281576,1714679468544,-500.0,0.00030684,2]
[325281577,1714679468553,-500.0,0.00030684,2]
[325281578,1714679468562,-588.89,0.00030684,2]
[325281579,1714679468571,-500.0,0.00030684,2]
[325281580,1714679468581,-701.12,0.00030684,2]
[325281581,1714679468590,-278.44856127,0.00030684,2]
[325281582,1714679468598,-500.0,0.00030684,2]
[325281583,1714679468607,-1003.43,0.00030684,2]
[325281584,1714679468616,-500.0,0.00030684,2]
[325281585,1714679468625,-500.0,0.00030684,2]
[325281586,1714679468635,-500.0,0.00030684,2]
[325281587,1714679468646,-1000.0,0.00030684,2]
[325281588,1714679468655,-500.0,0.00030684,2]
[325281589,1714679468664,-500.0,0.00030684,2]
[325281590,1714679468673,-500.0,0.00030684,2]
[325281591,1714679468681,-588.72,0.00030684,2]
[325281592,1714679468690,-500.0,0.00030684,2]
[325281593,1714679468698,-500.0,0.00030684,2]
[325281594,1714679468707,-500.0,0.00030684,2]
[325281595,1714679468716,-919.73,0.00030684,2]
[325281596,1714679468725,-500.0,0.00030684,2]
[325281597,1714679468734,-500.0,0.00030684,2]
[325281598,1714679468743,-500.0,0.00030684,2]
[325281599,1714679468752,-500.0,0.00030684,2]
[325281600,1714679468761,-500.0,0.00030684,2]
[325281601,1714679468771,-500.0,0.00030684,2]
[325281602,1714679468781,-966.93,0.00030684,2]
[325281603,1714679468795,-500.0,0.00030684,2]
[325281604,1714679468804,-500.0,0.00030684,2]
[325281605,1714679468813,-513.95,0.00030684,2]
[325281606,1714679468822,-500.0,0.00030684,2]
[325281607,1714679468833,-500.0,0.00030684,2]
[325281608,1714679468842,-953.5,0.00030684,2]
[325281609,1714679468851,-500.0,0.00030684,2]
[325281610,1714679468860,-500.0,0.00030684,2]
[325281611,1714679468871,-539.34,0.00030684,2]
[325281612,1714679468882,-731.44,0.00030684,2]
[325281613,1714679468894,-842.71,0.00030684,2]
[325281614,1714679468904,-500.0,0.00030684,2]
[325281615,1714679468912,-500.0,0.00030684,2]
[325281616,1714679468922,-500.0,0.00030684,2]
[325281617,1714679468934,-500.0,0.00030684,2]
[325281618,1714679468944,-500.0,0.00030684,2]
[325281619,1714679468953,-500.0,0.00030684,2]
[325281620,1714679468966,-500.0,0.00030684,2]
[325281621,1714679468975,-1415.74,0.00030684,2]
[325281622,1714679468984,-568.57,0.00030684,2]
[325281623,1714679468995,-500.0,0.00030684,2]
[325281624,1714679469005,-500.0,0.00030684,2]
[325281625,1714679469017,-500.0,0.00030684,2]
[325281626,1714679469026,-500.0,0.00030684,2]
[325281627,1714679469035,-829.68,0.00030684,2]
[325281628,1714679469044,-500.0,0.00030684,2]
[325281629,1714679469053,-500.0,0.00030684,2]
[325281630,1714679469063,-500.0,0.00030684,2]
[325281631,1714679469076,-500.0,0.00030684,2]
[325281632,1714679469086,-361.92083354,0.00030684,2]
[325281633,1714679469095,-500.0,0.00030684,2]
[325281634,1714679469104,-500.0,0.00030684,2]
[325281635,1714679469113,-699.25,0.00030684,2]
[325281636,1714679469122,-500.0,0.00030684,2]
[325281637,1714679469131,-500.0,0.00030684,2]
[325281638,1714679469142,-500.0,0.00030684,2]
[325281639,1714679469152,-776.82,0.00030684,2]
[325281640,1714679469161,-500.0,0.00030684,2]
[325281641,1714679469176,-500.0,0.00030684,2]
[325281642,1714679469185,-500.0,0.00030684,2]
[325281643,1714679469195,-815.09,0.00030684,2]
[325281644,1714679469209,-500.0,0.00030684,2]
[325281645,1714679469218,-210.31508689,0.00030684,2]
[325281646,1714679469228,-1587.81,0.00030684,2]
[325281647,1714679469237,-574.58,0.00030684,2]
[325281648,1714679469247,-500.0,0.00030684,2]
[325281649,1714679469256,-500.0,0.00030684,2]
[325281650,1714679469267,-500.0,0.00030684,2]
[325281651,1714679469278,-500.0,0.00030684,2]
[325281652,1714679469287,-500.0,0.00030684,2]
[325281653,1714679469297,-1105.36,0.00030684,2]
[325281654,1714679469307,-500.0,0.00030684,2]
[325281655,1714679469316,-500.0,0.00030684,2]
[325281656,1714679469324,-500.0,0.00030684,2]
[325281657,1714679469333,-525.19,0.00030684,2]
[325281658,1714679469343,-500.0,0.00030684,120]
[325281659,1714679469352,-835.68,0.00030684,2]
[325281660,1714679469368,-1345.94,0.00030684,2]
[325281661,1714679469377,-500.0,0.00030684,2]
[325281662,1714679469386,-500.0,0.00030684,2]
[325281663,1714679469396,-638.23,0.00030684,2]
[325281664,1714679469405,-500.0,0.00030684,2]
[325281665,1714679469414,-500.0,0.00030684,2]
[325281666,1714679469423,-569.33,0.00030684,2]
[325281667,1714679469432,-500.0,0.00030684,2]
[325281668,1714679469441,-500.0,0.00030684,2]
[325281669,1714679469451,-500.0,0.00030684,2]
[325281670,1714679469460,-500.0,0.00030684,2]
[325281671,1714679469468,-500.0,0.00030684,2]
[325281672,1714679469478,-500.0,0.00030684,2]
[325281673,1714679469488,-890.93,0.00030684,2]
[325281674,1714679469498,-500.0,0.00030684,2]
[325281675,1714679469507,-500.0,0.00030684,2]
[325281676,1714679469516,-678.94,0.00030684,2]
[325281677,1714679469526,-619.51,0.00030684,2]
[325281678,1714679469535,-1356.46,0.00030684,2]
[325281679,1714679469545,-500.0,0.00030684,2]
[325281680,1714679469554,-500.0,0.00030684,2]
[325281681,1714679469568,-500.0,0.00030684,2]
[325281682,1714679469578,-500.0,0.00030684,2]
[325281683,1714679469594,-500.0,0.00030684,2]
[325281684,1714679469610,-501.48607615,0.00030684,2]
[325281685,1714679469619,-773.65,0.00030684,2]
[325281686,1714679469629,-500.0,0.00030684,2]
[325281687,1714679469640,-500.0,0.00030684,2]
[325281688,1714679469649,-500.0,0.00030684,2]
[325281689,1714679469658,-608.14,0.00030684,2]
[325281690,1714679469668,-500.0,0.00030684,2]
[325281691,1714679469678,-904.84,0.00030684,2]
[325281692,1714679469688,-1101.45,0.00030684,2]
[325281693,1714679469698,-500.0,0.00030684,2]
[325281694,1714679469707,-918.83,0.00030684,2]
[325281695,1714679469721,-255.60249415,0.00030684,2]
[325281696,1714679469736,-835.61,0.00030684,2]
[325281697,1714679469749,-500.0,0.00030684,2]
[325281698,1714679469759,-500.0,0.00030684,2]
[325281699,1714679469770,-1077.4,0.00030684,2]
[325281700,1714679469787,-1225.73,0.00030684,2]
[325281701,1714679469807,-500.0,0.00030684,2]
[325281702,1714679469818,-500.0,0.00030684,2]
[325281703,1714679469828,-673.36,0.00030684,2]
[325281704,1714679469837,-575.78,0.00030684,2]
[325281705,1714679469852,-500.0,0.00030684,2]
[325281706,1714679469861,-500.0,0.00030684,2]
[325281707,1714679469872,-1274.59,0.00030684,2]
[325281708,1714679469882,-500.0,0.00030684,2]
[325281709,1714679469900,-500.0,0.00030684,2]
[325281710,1714679469910,-561.71,0.00030684,2]
[325281711,1714679469921,-2478.54,0.00030684,2]
[325281712,1714679469931,-1239.38,0.00030684,2]
[325281713,1714679469941,-500.0,0.00030684,2]
[325281714,1714679469951,-878.88,0.00030684,2]
[325281715,1714679469961,-719.03,0.00030684,2]
[325281716,1714679469971,-500.0,0.00030684,2]
[325281717,1714679469980,-994.29,0.00030684,2]
[325281718,1714679469990,-544.56,0.00030684,2]
[325281719,1714679469999,-500.0,0.00030684,2]
[325281720,1714679470008,-500.0,0.00030684,2]
[325281721,1714679470018,-936.01,0.00030684,2]
[325281722,1714679470027,-1314.37,0.00030684,2]